bitfinex/quotes_SOLUSD_20251212
["timestamp","ask_amount","ask_price","bid_price","bid_amount"]
[1765519097760,12.31929858,138.4,138.38,0.99999999]
[1765519097969,12.99386506,138.39,138.37,0.99999999]
[1765519098269,7.9,138.39,138.38,0.99999999]
[1765519098896,13.0470912,138.44,138.38,0.99999999]
[1765519098897,13.0470912,138.5,138.46,0.99999999]
[1765519099182,7.9,138.49,138.48,0.99999999]
[1765519100367,7.9,138.49,138.47,0.99999999]
[1765519100571,7.9,138.49,138.48,0.99999999]
[1765519100952,0.1,138.51,138.48,0.99999999]
[1765519101266,7.9,138.5,138.48,0.99999999]
[1765519102164,7.9,138.49,138.48,0.99999999]
[1765519102566,12.99386506,138.49,138.48,0.99999999]
[1765519102767,8.61,138.49,138.48,0.99999999]
[1765519103172,15.83073795,138.49,138.48,0.99999999]
[1765519103746,11.60419638,138.5,138.48,0.99999999]
[1765519103953,0.1,138.51,138.5,0.99999999]
[1765519104173,8.0,138.51,138.5,0.99999999]
[1765519107857,20.31356038,138.51,138.5,0.99999999]
[1765519109985,18.73371781,138.51,138.5,0.99999999]
[1765519110771,18.73371781,138.51,138.49,0.99999999]
[1765519110968,11.41402249,138.5,138.49,0.99999999]
[1765519111557,0.81,138.51,138.5,0.99999999]
[1765519111790,11.51402249,138.51,138.5,0.99999999]
[1765519112886,8.71,138.51,138.5,0.99999999]
[1765519113384,15.92972369,138.51,138.5,0.99999999]
[1765519113979,18.73374618,138.51,138.5,0.99999999]
[1765519114783,18.73359285,138.51,138.5,0.99999999]
[1765519115790,15.92972369,138.51,138.5,0.99999999]
[1765519116087,18.73359285,138.51,138.5,0.99999999]
[1765519117791,8.0,138.51,138.5,0.99999999]
[1765519117986,0.1,138.51,138.5,0.99999999]
[1765519118195,8.0,138.51,138.5,0.99999999]
[1765519118379,8.71,138.51,138.5,0.99999999]
[1765519120089,8.0,138.51,138.5,0.99999999]
[1765519121888,18.73356448,138.51,138.5,0.99999999]
[1765519123874,15.92969532,138.51,138.5,0.99999999]
[1765519127293,18.73356448,138.51,138.49,0.99999999]
[1765519127499,15.21969532,138.51,138.5,0.99999999]
[1765519127879,7.97969532,138.51,138.49,0.99999999]
[1765519128094,7.97969532,138.51,138.5,0.99999999]
[1765519128277,15.87969532,138.51,138.5,0.99999999]
[1765519130402,8.0,138.51,138.5,0.99999999]
[1765519136380,0.1,138.51,138.5,0.99999999]
[1765519136584,8.0,138.51,138.5,0.99999999]
[1765519137307,0.1,138.51,138.5,8.22021659]
[1765519137489,8.0,138.51,138.5,8.22021659]
[1765519140805,8.0,138.51,138.5,0.99999999]
[1765519141192,8.0,138.51,138.5,8.22021659]
[1765519142186,8.0,138.51,138.5,12.95675172]
[1765519145492,0.1,138.51,138.5,24.85488894]
[1765519147793,0.1,138.51,138.5,22.05101978]
[1765519148119,0.1,138.51,138.5,24.85488894]
[1765519149916,10.02063222,138.57,138.5,24.85488894]
[1765519149917,0.66,138.72,138.71,0.99999999]
[1765519150093,0.66,138.75,138.73,0.99999999]
[1765519150295,6.56,138.74,138.72,0.99999999]
[1765519150614,6.56,138.74,138.73,0.99999999]
[1765519150914,6.56,138.74,138.69,0.99999999]
[1765519150915,0.66,138.73,138.69,0.99999999]
[1765519151099,2.80386916,138.71,138.69,0.99999999]
[1765519151300,0.66,138.73,138.69,0.99999999]
[1765519151301,7.9,138.7,138.69,0.99999999]
[1765519151699,8.56,138.7,138.69,0.99999999]
[1765519152512,8.56,138.7,138.67,0.99999999]
[1765519152513,0.66,138.7,138.67,0.99999999]
[1765519152717,8.56,138.69,138.68,0.99999999]
[1765519156298,0.66,138.69,138.68,0.99999999]
[1765519156619,8.56,138.69,138.68,0.99999999]
[1765519157618,0.66,138.69,138.68,0.99999999]
[1765519157816,8.56,138.69,138.68,0.99999999]
[1765519158321,0.66,138.71,138.69,0.99999999]
[1765519158499,7.9,138.7,138.69,0.99999999]
[1765519159014,8.56,138.7,138.69,0.99999999]
[1765519161933,16.36196202,138.99,138.69,0.99999999]
[1765519161934,0.66,138.95,138.86,11.09426805]
[1765519162103,0.66,138.96,138.94,3.79617806]
[1765519162305,23.88517835,139.0,138.94,3.79617806]
[1765519162306,7.19527989,138.98,138.96,0.99999999]
[1765519162521,7.9,138.97,138.9,0.99999999]
[1765519162829,8.56,138.97,138.9,0.99999999]
[1765519163002,8.56,138.97,138.91,0.99999999]
[1765519163003,0.66,138.96,138.91,0.99999999]
[1765519163521,0.66,138.96,138.9,0.99999999]
[1765519163701,0.66,138.96,138.91,0.99999999]
[1765519165111,7.10860668,138.92,138.91,0.99999999]
[1765519165318,7.76860668,138.92,138.91,0.99999999]
[1765519166017,7.76860668,138.92,138.89,0.99999999]
[1765519166216,7.10860668,138.9,138.89,0.99999999]
[1765519166632,14.30803072,138.9,138.89,0.99999999]
[1765519166831,14.30803072,138.9,138.84,15.9185516]
[1765519166832,14.96803072,138.9,138.88,0.99999999]
[1765519167129,15.66860668,138.89,138.88,0.99999999]
[1765519167920,22.86854908,138.89,138.88,0.99999999]
[1765519169935,19.41968499,138.89,138.88,0.99999999]
[1765519170137,27.29968499,138.89,138.88,0.99999999]
[1765519171437,27.29968499,138.89,138.87,0.99999999]
[1765519171641,12.21974259,138.88,138.76,7.20624313]
[1765519171946,11.55974259,138.82,138.76,12.55974258]
[1765519172120,33.0797984,138.89,138.75,11.55974259]
[1765519172121,19.43974259,138.81,138.75,11.55974259]
[1765519172312,7.88,138.8,138.78,13.0470912]
[1765519172512,7.88,138.8,138.79,13.0470912]
[1765519173028,7.88,138.8,138.77,0.28432314]
[1765519173334,7.88,138.8,138.79,13.0470912]
[1765519174127,7.64389099,138.8,138.79,13.0470912]
[1765519175839,7.64389099,138.8,138.77,11.55974259]
[1765519175840,14.84850194,138.8,138.77,11.55974259]
[1765519177037,14.84850194,138.8,138.78,11.55974259]
[1765519178746,0.66,138.79,138.77,11.55974259]
[1765519178927,15.50850194,138.8,138.77,11.55974259]
[1765519179640,15.50850194,138.8,138.75,8.80994492]
[1765519179950,15.50850194,138.8,138.77,11.55974259]
[1765519180447,15.50850194,138.8,138.76,11.84406573]
[1765519180740,0.66,138.79,138.75,24.60683379]
[1765519180941,0.66,138.79,138.74,13.0470912]
[1765519181246,0.66,138.79,138.73,11.55974259]
[1765519181740,0.66,138.79,138.74,11.55974259]
[1765519181941,11.55974259,138.77,138.66,0.99999999]
[1765519182137,7.88,138.76,138.7,11.55974259]
[1765519182335,20.09974259,138.76,138.69,24.60683379]
[1765519182537,37.4449678,138.75,138.68,11.55974259]
[1765519182735,37.4449678,138.75,138.69,8.80994492]
[1765519182942,0.67,138.74,138.69,20.36968751]
[1765519183145,7.88,138.73,138.68,11.55974259]
[1765519183652,0.67,138.72,138.68,11.55974259]
[1765519184144,7.20928555,138.71,138.68,11.55974259]
[1765519184324,7.88,138.7,138.69,11.55974259]
[1765519185738,7.20928555,138.71,138.69,11.55974259]
[1765519186247,7.88,138.7,138.69,11.55974259]
[1765519186439,7.20928555,138.71,138.69,11.55974259]
[1765519186634,7.88,138.7,138.69,11.55974259]
[1765519188147,15.75980533,138.7,138.68,11.55974259]
[1765519188332,0.67,138.69,138.67,13.0470912]
[1765519188525,0.67,138.69,138.67,24.60683379]
[1765519188726,15.08980533,138.7,138.67,24.60683379]
[1765519188941,15.75980533,138.7,138.67,24.60683379]
[1765519190057,15.75980533,138.7,138.64,11.55974259]
[1765519190058,0.67,138.69,138.64,11.55974259]
[1765519190226,0.67,138.69,138.64,24.60683379]
[1765519190955,0.67,138.88,138.8,8.80994492]
[1765519191163,0.67,138.88,138.87,11.55974259]
[1765519191457,8.55,138.88,138.87,11.55974259]
[1765519192242,0.67,138.88,138.87,11.55974259]
[1765519192732,8.55,138.88,138.87,11.55974259]
[1765519193136,0.67,138.91,138.88,8.80994492]
[1765519193332,7.88,138.9,138.88,8.80994492]
[1765519193635,7.88,138.9,138.88,0.28432314]
[1765519193848,7.88,138.89,138.88,0.28432314]
[1765519194131,52.66273258,139.0,138.88,0.28432314]
[1765519194132,0.67,138.93,138.89,8.80994492]
[1765519194339,7.88,138.92,138.89,8.80994492]
[1765519194538,7.88,138.92,138.91,11.55974259]
[1765519194850,8.55,138.92,138.91,11.55974259]
[1765519195236,8.55,138.92,138.91,11.54802445]
[1765519195459,0.67,138.96,138.91,11.54802445]
[1765519195627,7.19613214,138.97,138.94,11.54802445]
[1765519195628,7.88,138.95,138.94,11.54802445]
[1765519196032,8.55,138.95,138.94,11.54802445]
[1765519196253,8.55,138.95,138.93,11.54802445]
[1765519196254,0.67,138.95,138.93,11.54802445]
[1765519196654,23.88502241,139.0,138.88,13.0470912]
[1765519196829,23.88502241,139.0,138.93,11.54802445]
[1765519196830,0.67,138.95,138.93,11.54802445]
[1765519197028,7.88,138.94,138.93,11.54802445]
[1765519197461,7.88,138.94,138.91,16.0086585]
[1765519197462,8.55,138.94,138.92,9.09426806]
[1765519197646,7.88,138.94,138.92,9.09426806]
[1765519197845,0.67,138.93,138.92,9.09426806]
[1765519198061,8.55,138.94,138.92,9.09426806]
[1765519198762,11.54802445,138.93,138.92,9.09426806]
[1765519199156,12.21802445,138.93,138.88,7.20038505]
[1765519199357,11.54802445,138.9,138.89,0.14216157]
[1765519199555,7.88,138.91,138.89,43.44138688]
[1765519199751,7.88,138.91,138.9,13.94345447]
[1765519200063,7.88,138.91,138.9,8.80994492]
[1765519200267,7.88,138.91,138.9,20.62871925]
[1765519200472,7.88,138.91,138.9,20.628718]
[1765519200945,7.88,138.91,138.9,20.91304114]
[1765519201149,20.09802445,138.91,138.86,8.80994492]
[1765519201354,20.09802445,138.91,138.87,4.62327958]
[1765519201551,8.55,138.91,138.89,8.80994492]
[1765519201784,7.88,138.91,138.89,8.80994492]
[1765519201965,8.55,138.91,138.89,8.95210649]
[1765519202145,8.55,138.91,138.87,8.80994492]
[1765519202146,12.21802445,138.9,138.87,8.80994492]
[1765519202469,11.54802445,138.89,138.86,16.01128599]
[1765519202763,0.67,138.89,138.86,16.01128599]
[1765519202968,11.54802445,138.9,138.86,16.01128599]
[1765519203179,12.21802445,138.9,138.86,16.01128599]
[1765519203377,19.42802445,138.91,138.87,16.01075131]
[1765519203671,11.54802445,138.96,138.92,0.14216157]
[1765519203972,12.21802445,138.97,138.92,0.14216157]
[1765519204174,7.88,138.96,138.93,7.19786943]
[1765519204350,0.67,138.96,138.93,7.19786943]
[1765519204550,7.88,138.95,138.93,7.19786943]
[1765519204767,0.67,138.96,138.93,7.19786943]
[1765519204954,7.88,138.95,138.93,7.19786943]
[1765519205154,0.67,138.96,138.93,7.19786943]
[1765519205360,7.88,138.94,138.93,7.48219257]
[1765519206354,7.88,138.94,138.92,16.00832469]
[1765519206559,8.55,138.94,138.92,9.09426806]
[1765519206758,7.88,138.94,138.92,16.29264251]
[1765519206969,7.88,138.93,138.92,16.29264251]
[1765519207256,12.21802445,138.98,138.93,16.00772221]
[1765519207456,7.88,138.97,138.93,16.00772221]
[1765519207669,0.67,138.97,138.93,16.00772221]
[1765519207875,7.88,138.96,138.93,16.00772221]
[1765519208274,0.67,138.97,138.93,16.00772221]
[1765519208459,0.67,138.97,138.93,27.55574666]
[1765519208662,7.88,138.96,138.93,27.55574666]
[1765519208862,0.67,138.97,138.93,27.55574666]
[1765519209069,7.88,138.96,138.93,27.55574666]
[1765519209379,0.67,138.97,138.93,27.55574666]
[1765519209579,7.88,138.96,138.94,20.64229251]
[1765519209875,16.6907,139.0,138.94,9.09426806]
[1765519210077,16.6907,139.0,138.96,11.69018602]
[1765519210250,16.6907,139.0,138.99,33.68938371]
[1765519210456,24.5707,139.0,138.99,22.14135926]
[1765519210858,24.5707,139.0,138.97,8.80994492]
[1765519211465,24.5707,139.0,138.98,7.19527989]
[1765519212069,7.88,138.99,138.98,7.19527989]
[1765519212280,20.09802445,138.99,138.94,21.85703612]
[1765519212591,11.54802445,138.98,138.94,21.85703612]
[1765519212773,12.21802445,138.98,138.94,21.85703612]
[1765519213080,28.88872445,139.0,138.95,0.14216157]
[1765519213390,7.88,138.97,138.96,16.0062604]
[1765519213564,19.42802445,138.97,138.95,7.19670411]
[1765519213764,7.88,138.97,138.95,7.19670411]
[1765519216372,16.6907,139.0,138.96,20.35796937]
[1765519216577,7.88,138.99,138.97,9.09426806]
[1765519216800,7.88,138.99,138.98,20.35796937]
[1765519217287,7.88,138.99,138.98,27.55324926]
[1765519217585,8.56,138.99,138.96,7.19581259]
[1765519217890,7.88,138.99,138.98,7.19527989]
[1765519218186,8.56,138.99,138.97,7.19573926]
[1765519219195,8.56,138.99,138.97,7.19579765]
[1765519219377,7.88,138.99,138.97,18.7438221]
[1765519219683,16.6907,139.0,138.98,20.35796937]
[1765519219988,7.88,138.99,138.98,20.35796937]
[1765519220165,8.56,138.99,138.96,18.74421169]
[1765519220365,16.6907,139.0,138.97,20.35796937]
[1765519220674,7.88,138.99,138.98,20.35796937]
[1765519221267,7.88,138.99,138.98,27.55324926]
[1765519221466,16.6907,139.0,138.98,27.55324926]
[1765519221692,16.6907,139.0,138.99,11.54802445]
[1765519221871,24.5707,139.0,138.99,11.54802445]
[1765519222686,24.5707,139.0,138.98,27.55324926]
[1765519222989,24.5707,139.0,138.98,16.00522481]
[1765519223161,16.6907,139.0,138.99,7.47908535]
[1765519223365,16.6907,139.0,138.99,27.83705472]
[1765519223568,7.88,139.16,139.11,8.80994492]
[1765519223792,11.54802445,139.3,139.11,8.80994492]
[1765519223793,11.54802445,139.23,139.15,11.54802445]
[1765519223963,7.17978173,139.28,139.17,21.85703612]
[1765519224165,0.68,139.27,139.2,13.0470912]
[1765519224391,35.87958976,139.36,139.24,11.54802445]
[1765519224392,7.88,139.26,139.24,11.54802445]
[1765519224595,11.54802445,139.31,139.25,11.54802445]
[1765519224772,11.54802445,139.29,139.21,9.09426806]
[1765519224966,7.88,139.28,139.23,11.54802445]
[1765519225287,0.68,139.31,139.27,11.54802445]
[1765519225490,11.54802445,139.28,139.21,25.14187198]
[1765519225690,7.88,139.3,139.21,7.18339199]
[1765519225691,11.54802445,139.26,139.21,7.18339199]
[1765519225894,7.88,139.25,139.21,7.18339199]
[1765519226092,20.10802445,139.25,139.18,31.00818583]
[1765519226267,0.68,139.24,139.18,7.18491907]
[1765519226592,12.22802445,139.24,139.19,7.18439031]
[1765519226888,11.54802445,139.22,139.17,15.99510015]
[1765519227088,11.54802445,139.2,139.15,8.80994492]
[1765519227273,11.54802445,139.2,139.16,7.18577758]
[1765519227466,0.68,139.19,139.16,7.18577758]
[1765519227971,0.68,139.19,139.08,58.90990029]
[1765519227972,11.54802445,139.17,139.12,7.18756951]
[1765519228171,7.88,139.18,139.12,11.54802445]
[1765519228375,8.56,139.18,139.14,11.54802445]
[1765519228969,0.68,139.17,139.14,8.80994492]
[1765519229380,0.68,139.17,139.12,11.54802445]
[1765519229381,12.22802445,139.17,139.12,11.54802445]
[1765519229574,11.54802445,139.16,139.12,8.80994492]
[1765519229774,0.68,139.15,139.12,15.9974862]
[1765519229970,0.68,139.15,139.11,13.0470912]
[1765519229971,7.88,139.14,139.11,13.0470912]
[1765519230184,7.88,139.14,139.12,7.18793596]
[1765519230390,7.76615889,139.13,139.07,7.08615889]
[1765519230792,0.68,139.18,139.12,20.13325009]
[1765519230992,17.95334109,139.25,139.15,7.08615889]
[1765519230993,7.88,139.17,139.15,7.08615889]
[1765519231173,7.08615889,139.21,139.15,14.27264828]
[1765519231174,7.88,139.16,139.15,14.27264828]
[1765519231573,7.88,139.16,139.15,23.0825932]
[1765519232396,15.64615889,139.16,139.05,11.30111156]
[1765519232586,7.76615889,139.15,139.04,36.95950947]
[1765519232894,7.76615889,139.15,139.08,15.89610381]
[1765519233081,7.08615889,139.13,139.07,25.06144905]
[1765519233280,7.86,139.12,139.09,7.08615889]
[1765519233486,7.86,139.12,139.08,15.89610381]
[1765519233695,8.54,139.12,139.08,15.89610381]
[1765519234007,0.68,139.12,139.08,15.89610381]
[1765519234205,7.86,139.11,139.06,7.08615889]
[1765519234384,15.62615889,139.11,139.07,7.19049028]
[1765519234701,0.68,139.1,139.07,7.19049028]
[1765519235784,0.68,139.1,139.06,7.191092]
[1765519236171,0.68,139.1,139.06,14.27725089]
[1765519236374,35.91346178,139.23,139.09,7.08615889]
[1765519236375,0.68,139.13,139.09,7.08615889]
[1765519236577,0.68,139.19,139.13,8.80994492]
[1765519236774,7.86,139.18,139.16,7.08615889]
[1765519236993,7.08615889,139.17,139.1,13.0470912]
[1765519237199,7.08615889,139.16,139.11,15.89610381]
[1765519237399,7.76615889,139.16,139.12,7.1880391]
[1765519237578,0.68,139.15,139.12,7.1880391]
[1765519237773,0.68,139.15,139.12,14.27419799]
[1765519238594,0.68,139.15,139.11,15.89610381]
[1765519238797,0.68,139.15,139.11,23.08493097]
[1765519238995,0.68,139.18,139.14,7.08663638]
[1765519239201,7.86,139.17,139.15,7.08663638]
[1765519239405,7.86,139.17,139.15,7.18616018]
[1765519239588,8.54,139.17,139.15,7.18616018]
[1765519240603,7.86,139.16,139.15,7.18616018]
[1765519241388,7.86,139.16,139.14,7.08663638]
[1765519241704,7.86,139.16,139.15,7.18644229]
[1765519241899,0.68,139.19,139.15,7.18644229]
[1765519242100,7.86,139.18,139.16,7.08663638]
[1765519242300,7.86,139.18,139.15,25.15266578]
[1765519242491,0.68,139.17,139.15,14.27307867]
[1765519243198,0.68,139.17,139.15,7.18644229]
[1765519243903,7.76663638,139.17,139.11,25.05777787]
[1765519244109,7.76663638,139.17,139.13,7.18745579]
[1765519244286,0.71,139.16,139.13,7.18745579]
[1765519244804,0.71,139.16,139.14,7.18700066]
[1765519245182,0.71,139.19,139.15,7.08663638]
[1765519245386,8.57,139.18,139.14,41.05109669]
[1765519246306,0.71,139.17,139.14,7.18700066]
[1765519246510,7.86,139.16,139.14,7.18700066]
[1765519247002,0.71,139.21,139.15,15.8965813]
[1765519247205,7.86,139.2,139.16,7.08663638]
[1765519247407,7.08663638,139.17,139.11,8.95210649]
[1765519247584,7.08663638,139.17,139.12,7.18792921]
[1765519247786,7.08663638,139.17,139.11,8.80994492]
[1765519247787,0.71,139.16,139.11,8.80994492]
[1765519248081,7.86,139.15,139.12,7.18796595]
[1765519248284,7.86,139.15,139.11,14.27507812]
[1765519248499,0.71,139.14,139.11,14.27507812]
[1765519248702,0.71,139.14,139.11,7.18844174]
[1765519251699,0.71,139.14,139.11,7.08663638]
[1765519252117,0.71,139.14,139.1,25.16158394]
[1765519252314,0.71,139.14,139.1,32.24822032]
[1765519253013,0.71,139.14,139.11,7.08663638]
[1765519253603,0.71,139.14,139.1,25.16158394]
[1765519253805,0.71,139.14,139.12,6.9580391]
[1765519254125,0.71,139.16,139.12,14.04467548]
[1765519254415,7.86,139.15,139.12,14.04467548]
[1765519254818,7.86,139.15,139.12,6.9580391]
[1765519255018,0.71,139.15,139.12,14.04467548]
[1765519255209,7.86,139.14,139.12,14.04467548]
[1765519255405,0.71,139.15,139.12,14.04467548]
[1765519255907,7.86,139.14,139.12,14.04467548]
[1765519256103,0.71,139.17,139.13,7.08663638]
[1765519256305,7.86,139.16,139.14,7.08663638]
[1765519256788,7.86,139.15,139.14,7.08663638]
[1765519256988,166.7,139.22,139.14,7.08663638]
[1765519256989,14.27015353,139.21,139.14,7.08663638]
[1765519257196,7.86,139.2,139.15,7.08663638]
[1765519257513,8.57,139.2,139.15,7.08663638]
[1765519257692,14.27015353,139.21,139.13,0.28432314]
[1765519257693,15.65663638,139.19,139.13,7.08663638]
[1765519257898,14.94663638,139.18,139.14,7.18700589]
[1765519258112,15.65663638,139.18,139.14,7.18700589]
[1765519258313,0.71,139.17,139.14,7.18700589]
[1765519258517,0.71,139.17,139.15,15.8965813]
[1765519258703,7.86,139.16,139.15,8.80994492]
[1765519259794,7.86,139.16,139.15,15.99643431]
[1765519259997,7.86,139.16,139.15,23.08307069]
[1765519261516,7.86,139.16,139.13,7.18738542]
[1765519261517,8.57,139.16,139.13,7.18738542]
[1765519261725,0.71,139.15,139.13,7.18738542]
[1765519261921,0.71,139.15,139.12,7.1880391]
[1765519262131,7.79663638,139.15,139.07,5.7741863]
[1765519262423,7.79663638,139.15,138.98,21.30303669]
[1765519262424,7.08663638,139.1,139.05,25.1702095]
[1765519262626,8.57,139.09,139.06,4.63485013]
[1765519262801,8.57,139.09,139.05,25.1702095]
[1765519262993,8.57,139.09,139.06,11.72090008]
[1765519262994,7.86,139.08,139.06,11.72090008]
[1765519263198,7.86,139.08,139.0,7.19423177]
[1765519263199,7.08663638,139.07,139.0,7.19423177]
[1765519263408,7.08663638,139.05,139.0,7.08663638]
[1765519263595,7.08663638,139.05,139.01,7.19363741]
[1765519263797,14.28017468,139.02,138.97,0.2]
[1765519264023,7.08663638,138.98,138.97,0.2]
[1765519264197,8.57,139.01,138.97,0.2]
[1765519264395,8.57,139.0,138.98,7.08663638]
[1765519265620,8.57,139.0,138.99,7.19476221]
[1765519266510,0.71,139.0,138.99,7.19476221]
[1765519266705,8.57,139.0,138.99,7.19476221]
[1765519267330,0.71,139.06,139.0,8.80994492]
[1765519267524,0.71,139.09,139.05,7.08663638]
[1765519267826,0.71,139.09,139.08,7.08663638]
[1765519267998,15.65663638,139.09,139.02,8.80994492]
[1765519268202,7.08663638,139.07,139.02,15.8965813]
[1765519268523,7.79663638,139.08,139.02,15.8965813]
[1765519268825,0.71,139.08,139.03,7.08663638]
[1765519269028,0.71,139.07,139.03,14.27891109]
[1765519269395,0.71,139.07,139.03,7.19227471]
[1765519270425,7.08663638,139.06,139.01,14.27987726]
[1765519270728,7.08663638,139.05,138.99,7.08663638]
[1765519270930,7.86,139.04,138.98,25.07383434]
[1765519271232,8.57,139.04,138.99,14.28129097]
[1765519271529,0.71,139.03,138.99,14.28129097]
[1765519271729,0.71,139.03,138.97,7.28663638]
[1765519271730,7.79663638,139.03,138.97,7.28663638]
[1765519271911,7.08663638,139.01,138.97,0.2]
[1765519272322,0.71,139.0,138.97,0.2]
[1765519272530,7.86,138.99,138.97,14.48240188]
[1765519272930,8.52,138.99,138.97,14.48240188]
[1765519274233,8.52,138.99,138.97,7.08663638]
[1765519274533,8.54,138.98,138.95,15.8965813]
[1765519274702,0.66,138.98,138.95,15.8965813]
[1765519274904,8.54,138.97,138.95,15.8965813]
[1765519275302,8.54,138.97,138.96,7.19631548]
[1765519276523,0.69,139.0,138.96,14.28295186]
[1765519276835,0.69,139.0,138.96,7.19631548]
[1765519277126,7.88,138.99,138.96,7.19631548]
[1765519277503,0.69,138.98,138.96,7.19631548]
[1765519277930,7.88,138.97,138.96,7.19631548]
[1765519278321,0.69,138.98,138.96,7.19631548]
[1765519278520,7.88,138.97,138.96,7.19631548]
[1765519278921,0.69,138.98,138.96,7.19631548]
[1765519279233,7.88,138.97,138.96,7.19631548]
[1765519279727,0.69,139.02,138.97,8.80994492]
[1765519279910,0.69,139.04,139.01,7.08663638]
[1765519280109,7.88,139.03,139.01,7.08663638]
[1765519280309,0.69,139.04,139.02,7.08663638]
[1765519280527,0.69,139.04,139.03,7.08663638]
[1765519280846,0.69,139.06,139.03,7.08663638]
[1765519281138,7.88,139.05,139.03,7.08663638]
[1765519281324,7.88,139.05,139.03,7.09383629]
[1765519281725,7.88,139.05,139.01,9.09426806]
[1765519282036,7.88,139.05,139.03,14.28619878]
[1765519282938,0.69,139.04,139.02,7.19310257]
[1765519283139,7.88,139.05,139.03,14.28652851]
[1765519283332,7.88,139.05,139.03,7.19269222]
[1765519283831,7.88,139.05,139.02,17.98197541]
[1765519283832,8.57,139.05,139.02,17.98197541]
[1765519284028,8.57,139.05,139.02,25.0758117]
[1765519284614,7.88,139.05,139.04,7.09383629]
[1765519284814,0.69,139.08,139.04,7.09383629]
[1765519285028,7.88,139.05,139.04,7.09383629]
[1765519286126,7.88,139.05,139.04,7.19217491]
[1765519286328,8.57,139.05,139.04,7.19217491]
[1765519286533,8.57,139.05,139.04,14.2860112]
[1765519286845,8.57,139.05,139.03,7.19255691]
[1765519287137,0.69,139.04,139.03,7.19255691]
[1765519287314,0.69,139.04,138.99,25.07944783]
[1765519287717,0.69,139.04,139.0,7.19422716]
[1765519287943,7.78383629,139.04,139.0,7.19422716]
[1765519288150,7.78383629,139.04,138.99,7.19476221]
[1765519288313,0.69,139.03,138.99,7.19476221]
[1765519288512,0.69,139.03,139.0,15.90378121]
[1765519288737,0.69,139.03,139.01,7.09383629]
[1765519289238,0.69,139.03,138.99,25.18166774]
[1765519289434,0.69,139.03,138.99,7.19476221]
[1765519289634,0.69,139.03,138.99,14.2885985]
[1765519291423,7.8827152,139.03,138.99,7.19476221]
[1765519291745,14.97655149,139.03,138.99,7.19466825]
[1765519292046,12.22782549,139.02,138.98,7.19513793]
[1765519292346,0.69,139.01,138.97,7.19579566]
[1765519292648,7.88,139.0,138.97,7.19579566]
[1765519292820,11.53782549,138.98,138.93,17.99452801]
[1765519293023,0.69,138.99,138.96,11.53782549]
[1765519293332,7.88,138.98,138.96,11.53782549]
[1765519293650,7.88,138.98,138.94,7.19699191]
[1765519293858,8.57,138.98,138.95,11.53782549]
[1765519294329,0.69,138.97,138.95,7.19683339]
[1765519294650,0.69,138.97,138.95,18.73465888]
[1765519295340,7.88,138.98,138.95,18.73465888]
[1765519295648,8.57,138.98,138.95,18.73465888]
[1765519295841,8.57,138.98,138.94,25.18947397]
[1765519296040,8.57,138.98,138.95,11.53782549]
[1765519296866,8.57,138.98,138.96,7.19631548]
[1765519297152,0.69,138.97,138.96,7.19631548]
[1765519297527,0.69,138.97,138.95,7.19670308]
[1765519297726,0.69,138.97,138.93,7.19736989]
[1765519298234,0.69,138.97,138.94,7.19728046]
[1765519298628,0.69,138.97,138.93,7.19774931]
[1765519299845,12.22782549,138.97,138.93,7.19774931]
[1765519300048,19.42385953,138.97,138.92,7.19817211]
[1765519300227,0.69,138.96,138.92,7.19817211]
[1765519301334,19.42418082,138.96,138.92,7.19817211]
[1765519301952,0.69,138.95,138.92,7.19817211]
[1765519302152,7.88,138.94,138.92,7.19817211]
[1765519302348,0.69,138.93,138.92,7.19817211]
[1765519303633,0.71,138.97,138.92,11.53782549]
[1765519303851,7.88,138.96,138.94,11.53782549]
[1765519304239,8.59,138.96,138.94,11.53782549]
[1765519304440,0.71,138.96,138.95,11.53782549]
[1765519304642,0.71,138.98,138.95,11.53782549]
[1765519304966,7.88,138.97,138.96,11.53782549]
[1765519305334,8.59,138.97,138.96,11.53782549]